fUST/lending_fUST_20250913
["ID","MTS","AMOUNT","RATE_DAILY","PERIOD"]
[385311361,1757761848619,-480.0,0.00024657,3]
[385311362,1757761848628,-480.0,0.00024657,3]
[385311363,1757761848638,-480.0,0.00024657,3]
[385311364,1757761848647,-480.0,0.00024657,3]
[385311365,1757761848657,-480.0,0.00024657,3]
[385311366,1757761848667,-480.0,0.00024657,3]
[385311367,1757761848677,-483.95486475,0.00024657,3]
[385311368,1757761848686,-480.0,0.00024657,3]
[385311369,1757761848695,-480.0,0.00024657,3]
[385311370,1757761848704,-480.0,0.00024657,3]
[385311371,1757761848713,-480.0,0.00024657,3]
[385311372,1757761848722,-497.34512444,0.00024657,3]
[385311373,1757761848731,-676.0,0.00024657,3]
[385311374,1757761848740,-480.0,0.00024657,3]
[385311375,1757761848749,-480.0,0.00024657,3]
[385311376,1757761848759,-480.0,0.00024657,3]
[385311377,1757761848769,-480.0,0.00024657,3]
[385311378,1757761848778,-480.0,0.00024657,3]
[385311379,1757761848787,-480.0,0.00024657,3]
[385311380,1757761848796,-480.0,0.00024657,3]
[385311381,1757761848806,-480.0,0.00024657,3]
[385311382,1757761848815,-408.33325527,0.00024657,3]
[385311383,1757761848824,-480.0,0.00024657,3]
[385311384,1757761848833,-480.0,0.00024657,3]
[385311385,1757761848841,-481.56120077,0.00024657,3]
[385311386,1757761848851,-480.0,0.00024657,3]
[385311387,1757761848860,-480.0,0.00024657,3]
[385311388,1757761848869,-480.0,0.00024657,3]
[385311389,1757761848878,-480.0,0.00024657,3]
[385311390,1757761848887,-480.0,0.00024657,3]
[385311391,1757761848896,-480.0,0.00024657,3]
[385311392,1757761848907,-480.0,0.00024657,3]
[385311393,1757761848916,-298.81473003,0.00024657,3]
[385311394,1757761848925,-354.47716169,0.00024657,3]
[385311395,1757761848934,-480.0,0.00024657,3]
[385311396,1757761848943,-480.0,0.00024657,3]
[385311397,1757761848952,-480.0,0.00024657,3]
[385311398,1757761848961,-480.0,0.00024657,3]
[385311399,1757761848970,-480.0,0.00024657,3]
[385311400,1757761848979,-480.0,0.00024657,3]
[385311401,1757761848988,-480.0,0.00024657,3]
[385311402,1757761848998,-480.0,0.00024657,3]
[385311403,1757761849007,-480.0,0.00024657,3]
[385311404,1757761849016,-480.0,0.00024657,3]
[385311405,1757761849025,-480.0,0.00024657,3]
[385311406,1757761849035,-480.0,0.00024657,3]
[385311407,1757761849044,-480.0,0.00024657,3]
[385311408,1757761849053,-480.0,0.00024657,3]
[385311409,1757761849063,-480.0,0.00024657,3]
[385311410,1757761849071,-480.0,0.00024657,3]
[385311411,1757761849244,-480.0,0.00024657,3]
[385311412,1757761849254,-480.0,0.00024657,3]
[385311413,1757761849263,-480.0,0.00024657,3]
[385311414,1757761849272,-480.0,0.00024657,3]
[385311415,1757761849281,-480.0,0.00024657,3]
[385311416,1757761849290,-480.0,0.00024657,3]
[385311417,1757761849299,-480.0,0.00024657,3]
[385311418,1757761849309,-480.0,0.00024657,3]
[385311419,1757761849318,-2988.63,0.00024657,3]
[385311420,1757761849327,-4769.31,0.00024657,3]
[385311421,1757761849337,-514.28699935,0.00024657,3]
[385311422,1757761849346,-163.7905686,0.00024657,3]
[385311423,1757761849355,-480.0,0.00024657,3]
[385311424,1757761849365,-480.0,0.00024657,3]
[385311425,1757761849374,-480.0,0.00024657,3]
[385311426,1757761849383,-8091.76,0.00024657,3]
[385311427,1757761849393,-481.64289775,0.00024657,3]
[385311428,1757761849403,-480.0,0.00024657,3]
[385311429,1757761849412,-480.0,0.00024657,3]
[385311430,1757761849421,-480.0,0.00024657,3]
[385311431,1757761849431,-502.43,0.00024657,3]
[385311432,1757761849440,-480.0,0.00024657,3]
[385311433,1757761849449,-500.0,0.00024657,3]
[385311434,1757761849459,-480.0,0.00024657,3]
[385311435,1757761849469,-480.0,0.00024657,3]
[385311436,1757761849478,-480.0,0.00024657,3]
[385311437,1757761849488,-480.0,0.00024657,3]
[385311438,1757761849497,-480.0,0.00024657,3]
[385311439,1757761849506,-480.0,0.00024657,3]
[385311440,1757761849516,-480.0,0.00024657,3]
[385311441,1757761849526,-1127.21,0.00024657,3]
[385311442,1757761849535,-480.0,0.00024657,3]
[385311443,1757761849545,-483.31654338,0.00024657,3]
[385311444,1757761849554,-480.0,0.00024657,3]
[385311445,1757761849563,-480.0,0.00024657,3]
[385311446,1757761849572,-480.0,0.00024657,3]
[385311447,1757761849582,-480.0,0.00024657,3]
[385311448,1757761849595,-480.0,0.00024657,3]
[385311449,1757761849604,-480.0,0.00024657,3]
[385311450,1757761849614,-480.0,0.00024657,3]
[385311451,1757761849624,-480.0,0.00024657,3]
[385311452,1757761849634,-480.0,0.00024657,3]
[385311453,1757761849643,-480.0,0.00024657,3]
[385311454,1757761849653,-500.0,0.00024657,3]
[385311455,1757761849663,-480.0,0.00024657,3]
[385311456,1757761849672,-500.0,0.00024657,3]
[385311457,1757761849682,-500.0,0.00024657,3]
[385311458,1757761849691,-456.81368947,0.00024657,3]
[385311459,1757761849700,-500.0,0.00024657,3]
[385311460,1757761849709,-480.0,0.00024657,3]
[385311461,1757761849718,-500.0,0.00024657,3]
[385311462,1757761849727,-500.0,0.00024657,3]
[385311463,1757761849737,-583.89674286,0.00024657,3]
[385311464,1757761849747,-480.0,0.00024657,3]
[385311465,1757761849757,-480.0,0.00024657,3]
[385311466,1757761849766,-480.0,0.00024657,3]
[385311467,1757761849775,-1747.82,0.00024657,3]
[385311468,1757761849784,-480.0,0.00024657,3]
[385311469,1757761849793,-532.7,0.00024657,3]
[385311470,1757761849803,-480.0,0.00024657,3]
[385311471,1757761849814,-500.0,0.00024657,3]
[385311472,1757761849824,-480.0,0.00024657,3]
[385311473,1757761849833,-179.53172178,0.00024657,3]
[385311474,1757761849842,-480.0,0.00024657,3]
[385311475,1757761849851,-480.0,0.00024657,3]
[385311476,1757761849862,-480.0,0.00024657,3]
[385311477,1757761849871,-177.6782471,0.00024657,3]
[385311478,1757761849881,-480.0,0.00024657,3]
[385311479,1757761849891,-480.0,0.00024657,3]
[385311480,1757761849900,-480.0,0.00024657,3]
[385311481,1757761849910,-480.0,0.00024657,3]
[385311482,1757761849919,-480.0,0.00024657,3]
[385311483,1757761849928,-480.0,0.00024657,3]
[385311484,1757761849937,-480.0,0.00024657,3]
[385311485,1757761849947,-480.0,0.00024657,3]
[385311486,1757761849956,-480.0,0.00024657,3]
[385311487,1757761849965,-480.0,0.00024657,3]
[385311488,1757761849974,-480.0,0.00024657,3]
[385311489,1757761849983,-480.0,0.00024657,3]
[385311490,1757761849993,-480.0,0.00024657,3]
[385311491,1757761850002,-480.0,0.00024657,3]
[385311492,1757761850011,-480.0,0.00024657,3]
[385311493,1757761850020,-921.37,0.00024657,3]
[385311494,1757761850030,-1265.09,0.00024657,3]
[385311495,1757761850040,-480.0,0.00024657,3]
[385311496,1757761850051,-1427.53,0.00024657,3]
[385311497,1757761850060,-480.0,0.00024657,3]
[385311498,1757761850070,-860.93,0.00024657,3]
[385311499,1757761850079,-480.0,0.00024657,3]
[385311500,1757761850087,-480.0,0.00024657,3]
[385311501,1757761850097,-480.0,0.00024657,3]
[385311502,1757761850106,-480.0,0.00024657,3]
[385311503,1757761850115,-945.26,0.00024657,3]
[385311504,1757761850125,-480.0,0.00024657,3]
[385311505,1757761850134,-480.0,0.00024657,3]
[385311506,1757761850144,-6351.34,0.00024657,3]
[385311507,1757761850153,-480.0,0.00024657,3]
[385311508,1757761850163,-480.0,0.00024657,3]
[385311509,1757761850172,-480.0,0.00024657,3]
[385311510,1757761850182,-480.0,0.00024657,3]
[385311511,1757761850191,-480.0,0.00024657,3]
[385311512,1757761850200,-480.0,0.00024657,3]
[385311513,1757761850209,-181.17786068,0.00024657,3]
[385311514,1757761850218,-480.0,0.00024657,3]
[385311515,1757761850228,-600.68186447,0.00024657,3]
[385311516,1757761850237,-480.0,0.00024657,3]
[385311517,1757761850247,-570.23552555,0.00024657,3]
[385311518,1757761850256,-919.89,0.00024657,3]
[385311519,1757761850265,-480.0,0.00024657,3]
[385311520,1757761850275,-583.19101569,0.00024657,3]
[385311521,1757761850283,-480.0,0.00024657,3]
[385311522,1757761850292,-480.0,0.00024657,3]
[385311523,1757761850301,-480.0,0.00024657,3]
[385311524,1757761850310,-480.0,0.00024657,3]
[385311525,1757761850319,-480.0,0.00024657,3]
[385311526,1757761850329,-480.0,0.00024657,3]
[385311527,1757761850338,-846.96613202,0.00024657,3]
[385311528,1757761850348,-482.29672076,0.00024657,3]
[385311529,1757761850358,-399.21000796,0.00024657,3]
[385311530,1757761850368,-480.0,0.00024657,3]
[385311531,1757761850377,-599.13,0.00024657,3]
[385311532,1757761850387,-480.0,0.00024657,3]
[385311533,1757761850396,-3009.99,0.00024657,3]
[385311534,1757761850405,-480.0,0.00024657,3]
[385311535,1757761850414,-481.78855305,0.00024657,3]
[385311536,1757761850423,-523.33,0.00024657,3]
[385311537,1757761850433,-1789.43,0.00024657,3]
[385311538,1757761850444,-480.0,0.00024657,3]
[385311539,1757761850457,-471.28477089,0.00024657,3]
[385311540,1757761850466,-480.0,0.00024657,3]
[385311541,1757761850475,-480.0,0.00024657,3]
[385311542,1757761850484,-638.83,0.00024657,3]
[385311543,1757761850494,-1226.48,0.00024657,3]
[385311544,1757761850503,-480.0,0.00024657,3]
[385311545,1757761850512,-480.0,0.00024657,3]
[385311546,1757761850522,-480.0,0.00024657,3]
[385311547,1757761850531,-480.0,0.00024657,3]
[385311548,1757761850540,-480.0,0.00024657,3]
[385311549,1757761850549,-772.34,0.00024657,3]
[385311550,1757761850559,-544.78617761,0.00024657,3]
[385311551,1757761850568,-480.0,0.00024657,3]
[385311552,1757761850577,-160.0,0.00024657,3]
[385311553,1757761850588,-557.02,0.00024657,3]
[385311554,1757761850598,-480.0,0.00024657,3]
[385311555,1757761850607,-480.0,0.00024657,3]
[385311556,1757761850616,-480.0,0.00024657,3]
[385311557,1757761850625,-480.69081321,0.00024657,3]
[385311558,1757761850635,-480.0,0.00024657,3]
[385311559,1757761850645,-480.0,0.00024657,3]
[385311560,1757761850654,-480.0,0.00024657,3]
[385311561,1757761850664,-480.0,0.00024657,3]
[385311562,1757761850674,-480.0,0.00024657,3]
[385311563,1757761850683,-903.02,0.00024657,3]
[385311564,1757761850692,-480.0,0.00024657,3]
[385311565,1757761850702,-480.0,0.00024657,3]
[385311566,1757761850711,-480.0,0.00024657,3]
[385311567,1757761850720,-480.0,0.00024657,3]
[385311568,1757761850730,-480.0,0.00024657,3]
[385311569,1757761850738,-1606.56,0.00024657,3]
[385311570,1757761850748,-493.23003205,0.00024657,3]
[385311571,1757761850757,-480.0,0.00024657,3]
[385311572,1757761850767,-480.0,0.00024657,3]
[385311573,1757761850776,-480.0,0.00024657,3]
[385311574,1757761850785,-480.0,0.00024657,3]
[385311575,1757761850795,-480.0,0.00024657,3]
[385311576,1757761850804,-480.0,0.00024657,3]
[385311577,1757761850813,-480.0,0.00024657,3]
[385311578,1757761850822,-480.0,0.00024657,3]
[385311579,1757761850831,-417.15472785,0.00024657,3]
[385311580,1757761850840,-311.10748268,0.00024657,3]
[385311581,1757761850849,-480.0,0.00024657,3]
[385311582,1757761850858,-480.0,0.00024657,3]
[385311583,1757761850867,-480.0,0.00024657,3]
[385311584,1757761850876,-480.0,0.00024657,3]
[385311585,1757761850886,-480.0,0.00024657,3]
[385311586,1757761850895,-480.0,0.00024657,3]
[385311587,1757761850906,-480.0,0.00024657,3]
[385311588,1757761850915,-480.0,0.00024657,3]
[385311589,1757761850924,-531.13137412,0.00024657,3]
[385311590,1757761850933,-480.0,0.00024657,3]
[385311591,1757761850942,-480.0,0.00024657,3]
[385311592,1757761850952,-480.0,0.00024657,3]
[385311593,1757761850963,-1685.37,0.00024657,3]
[385311594,1757761850972,-480.0,0.00024657,3]
[385311595,1757761850982,-2365.03,0.00024657,3]
[385311596,1757761850991,-480.0,0.00024657,3]
[385311597,1757761851001,-480.0,0.00024657,3]
[385311598,1757761851010,-480.0,0.00024657,3]
[385311599,1757761851019,-1610.22,0.00024657,3]
[385311600,1757761851028,-480.0,0.00024657,3]
[385311601,1757761851037,-480.0,0.00024657,3]
[385311602,1757761851046,-366.12977554,0.00024657,3]
[385311603,1757761851056,-970.29,0.00024657,3]
[385311604,1757761851066,-1403.92,0.00024657,3]
[385311605,1757761851075,-395.66916759,0.00024657,3]
[385311606,1757761851084,-480.0,0.00024657,3]
[385311607,1757761851094,-324.84446868,0.00024657,3]
[385311608,1757761851103,-480.0,0.00024657,3]
[385311609,1757761851112,-480.0,0.00024657,3]
[385311610,1757761851121,-480.0,0.00024657,3]
[385311611,1757761851131,-484.61020092,0.00024657,3]
[385311612,1757761851140,-480.0,0.00024657,3]
[385311613,1757761851150,-480.0,0.00024657,3]
[385311614,1757761851159,-480.0,0.00024657,3]
[385311615,1757761851169,-480.0,0.00024657,3]
[385311616,1757761851178,-480.0,0.00024657,3]
[385311617,1757761851187,-480.0,0.00024657,3]
[385311618,1757761851196,-480.0,0.00024657,3]
[385311619,1757761851205,-3228.56,0.00024657,3]
[385311620,1757761851214,-480.0,0.00024657,3]
[385311621,1757761851224,-480.0,0.00024657,3]
[385311622,1757761851234,-480.0,0.00024657,3]
[385311623,1757761851243,-480.0,0.00024657,3]
[385311624,1757761851252,-481.74542209,0.00024657,3]
[385311625,1757761851261,-485.82683563,0.00024657,3]
[385311626,1757761851271,-480.0,0.00024657,3]
[385311627,1757761851280,-480.0,0.00024657,2]
[385311628,1757761851289,-480.0,0.00024657,3]
[385311629,1757761851298,-368.59993085,0.00024657,3]
[385311630,1757761851307,-2753.84,0.00024657,3]
[385311631,1757761851316,-480.0,0.00024657,3]
[385311632,1757761851326,-480.0,0.00024657,3]
[385311633,1757761851334,-480.0,0.00024657,3]
[385311634,1757761851344,-500.0,0.00024658,2]
[385311635,1757761851354,-157.0,0.00024658,2]
[385311636,1757761851363,-500.0,0.00024658,2]
[385311637,1757761851372,-157.0,0.00024658,2]
[385311638,1757761851383,-157.0,0.00024658,2]
[385311639,1757761851391,-157.0,0.00024658,2]
[385311640,1757761851400,-225.61407625,0.00024658,2]
[385311641,1757761851411,-500.0,0.00024658,2]
[385311642,1757761851420,-157.0,0.00024658,2]
[385311643,1757761851429,-500.0,0.00024658,2]
[385311644,1757761851438,-500.0,0.00024658,2]
[385311645,1757761851447,-157.0,0.00024658,2]
[385311646,1757761851456,-157.0,0.00024658,2]
[385311647,1757761851465,-500.0,0.00024658,2]
[385311648,1757761851475,-157.0,0.00024658,2]
[385311649,1757761851484,-157.0,0.00024658,2]
[385311650,1757761851493,-157.0,0.00024658,2]
[385311651,1757761851502,-501.28086059,0.00024673,2]
[385311652,1757761851511,-501.45101962,0.00024673,2]
[385311653,1757761851521,-164.46388684,0.00024673,2]
[385311654,1757761851531,-500.0,0.00024673,2]
[385311655,1757761851549,-500.0,0.00024673,2]
[385311656,1757761851558,-500.0,0.00024673,2]
[385311657,1757761851568,-302.78704735,0.00024673,2]
[385311658,1757761851577,-500.0132408,0.00024673,2]
[385311659,1757761851591,-516.81450485,0.00024673,2]
[385311660,1757761851600,-500.0,0.00024673,2]
[385311661,1757761851611,-504.07099418,0.00024673,2]
[385311662,1757761851620,-500.0,0.00024673,2]
[385311663,1757761851631,-500.0,0.00024673,2]
[385311664,1757761851639,-500.0,0.00024673,2]
[385311665,1757761851649,-500.0,0.00024673,2]
[385311666,1757761851660,-500.0,0.00024673,2]
[385311667,1757761851670,-532.0,0.00024673,2]
[385311668,1757761851679,-647.21827694,0.00024694,2]
[385311669,1757761851689,-532.0,0.00024752,2]
[385311670,1757761851698,-647.21827694,0.00024831,2]
[385311671,1757761851707,-500.0,0.00024873,2]
[385311672,1757761851716,-279.28129344,0.00024873,2]
[385311673,1757761851725,-3162.4687276,0.0002489,2]
[385311674,1757761851736,-140336.6694012,0.0002489,5]
[385311675,1757761851745,-2772.3026292,0.0002489,2]
[385311676,1757761851755,-219.0,0.00024894,2]
[385311677,1757761851764,-2109.45220869,0.00024896,2]
[385311678,1757761851773,-753.43596061,0.00024899,2]
[385311679,1757761851783,-233.1568031,0.000249,7]
[385311680,1757761851792,-762.88,0.000249,7]
[385311681,1757761851801,-2212.62,0.000249,7]
[385311682,1757761851810,-541.56036123,0.000249,2]
[385311683,1757761851819,-2166.24144493,0.000249,2]
[385311684,1757761851828,-151.0,0.000249,7]
[385311685,1757761851838,-151.0,0.000249,7]
[385311686,1757761851847,-151.0,0.000249,7]
[385311687,1757761851857,-4869.16920785,0.000249,2]
[385311688,1757761851866,-151.0,0.000249,7]
[385311689,1757761851875,-151.0,0.000249,7]
[385311690,1757761851885,-151.0,0.000249,7]
[385311691,1757761851894,-158.834448,0.000249,7]
[385311692,1757761851904,-153.533284,0.000249,7]
[385311693,1757761851913,-153.077719,0.000249,7]
[385311694,1757761851923,-153.624784,0.000249,7]
[385311695,1757761851932,-151.0,0.000249,7]
[385311696,1757761851941,-151.0,0.000249,7]
[385311697,1757761851951,-151.0,0.000249,7]
[385311698,1757761851960,-151.0,0.000249,7]
[385311699,1757761851969,-151.0,0.000249,7]
[385311700,1757761851979,-151.0,0.000249,7]
[385311701,1757761851988,-151.0,0.000249,7]
[385311702,1757761851997,-151.0,0.000249,7]
[385311703,1757761852006,-151.0,0.000249,7]
[385311704,1757761852015,-151.0,0.000249,7]
[385311705,1757761852024,-151.0,0.000249,7]
[385311706,1757761852034,-151.0,0.000249,7]
[385311707,1757761852043,-301.062766,0.000249,7]
[385311708,1757761852052,-151.0,0.000249,7]
[385311709,1757761852061,-301.062766,0.000249,7]
[385311710,1757761852070,-151.0,0.000249,7]
[385311711,1757761852079,-151.0,0.000249,7]
[385311712,1757761852088,-301.062766,0.000249,7]
[385311713,1757761852097,-301.062766,0.000249,7]
[385311714,1757761852106,-151.0,0.000249,2]
[385311715,1757761852116,-208.976597,0.000249,2]
[385311716,1757761852125,-151.0,0.000249,7]
[385311717,1757761852134,-151.0,0.000249,7]
[385311718,1757761852143,-151.0,0.000249,7]
[385311719,1757761852153,-151.0,0.000249,7]
[385311720,1757761852162,-428.90969,0.000249,7]
[385311721,1757761852172,-428.90969,0.000249,7]
[385311722,1757761852181,-428.90969,0.000249,7]
[385311723,1757761852190,-151.0,0.000249,7]
[385311724,1757761852199,-428.90969,0.000249,7]
[385311725,1757761852208,-151.0,0.000249,7]
[385311726,1757761852217,-151.0,0.000249,7]
[385311727,1757761852227,-151.0,0.000249,7]
[385311728,1757761852236,-151.0,0.000249,7]
[385311729,1757761852246,-151.0,0.000249,7]
[385311730,1757761852256,-151.0,0.000249,7]
[385311731,1757761852265,-151.0,0.000249,7]
[385311732,1757761852275,-151.0,0.000249,9]
[385311733,1757761852284,-151.0,0.000249,10]
[385311734,1757761852294,-151.0,0.000249,7]
[385311735,1757761852303,-297.93328,0.000249,7]
[385311736,1757761852313,-151.0,0.000249,7]
[385311737,1757761852322,-151.0,0.000249,7]
[385311738,1757761852331,-151.0,0.000249,7]
[385311739,1757761852341,-151.0,0.000249,7]
[385311740,1757761852350,-151.0,0.000249,7]
[385311741,1757761852359,-151.0,0.000249,7]
[385311742,1757761852369,-151.0,0.000249,7]
[385311743,1757761852378,-151.0,0.000249,7]
[385311744,1757761852387,-151.0,0.000249,7]
[385311745,1757761852397,-151.0,0.000249,7]
[385311746,1757761852406,-151.0,0.000249,7]
[385311747,1757761852416,-151.0,0.000249,7]
[385311748,1757761852425,-151.0,0.000249,7]
[385311749,1757761852435,-151.0,0.000249,7]
[385311750,1757761852444,-151.0,0.000249,7]
[385311751,1757761852454,-151.0,0.000249,7]
[385311752,1757761852463,-151.0,0.000249,7]
[385311753,1757761852472,-151.0,0.000249,7]
[385311754,1757761852481,-410.820081,0.000249,7]
[385311755,1757761852491,-410.820081,0.000249,7]
[385311756,1757761852500,-151.0,0.000249,7]
[385311757,1757761852509,-410.820081,0.000249,7]
[385311758,1757761852519,-151.0,0.000249,7]
[385311759,1757761852528,-410.820081,0.000249,7]
[385311760,1757761852539,-151.0,0.000249,7]
[385311761,1757761852548,-480.78007,0.000249,7]
[385311762,1757761852558,-480.78007,0.000249,7]
[385311763,1757761852568,-480.78007,0.000249,7]
[385311764,1757761852577,-310.924344,0.000249,7]
[385311765,1757761852588,-480.78007,0.000249,7]
[385311766,1757761852599,-310.924344,0.000249,7]
[385311767,1757761852608,-310.924344,0.000249,7]
[385311768,1757761852617,-151.0,0.000249,7]
[385311769,1757761852630,-310.924344,0.000249,7]
[385311770,1757761852640,-151.0,0.000249,7]
[385311771,1757761852649,-151.0,0.000249,7]
[385311772,1757761852660,-151.0,0.000249,7]
[385311773,1757761852672,-23388.1998522,0.000249,2]
[385311774,1757761853010,-1901.35959753,0.000249,2]
[385311775,1757761853069,-1529.45822257,0.000249,2]
[385311776,1757761853079,-1000.0,0.000249,2]
[385311777,1757761853090,-3842.47724148,0.000249,2]
[385311781,1757762366312,1178.0,0.00027397,120]
[385311796,1757762870533,1222.34112,0.00018,2]
[385311803,1757762932272,1000.0,0.00029323,60]
[385311842,1757763032073,-168.0,0.00019701,2]
[385311843,1757763032083,-4057.40860094,0.000199,2]
[385311844,1757763032092,-330.92886092,0.0002,2]
[385311845,1757763032179,-125.07113908,0.0002,2]
[385311847,1757763032188,-456.0,0.000202,2]
[385311849,1757763032198,-456.0,0.000204,2]
[385311852,1757763032207,-456.0,0.000206,2]
[385311855,1757763032216,-1659.536996,0.00020661,2]
[385311858,1757763032224,-456.0,0.000208,2]
[385311860,1757763032234,-522.8067677,0.00020938,2]
[385311862,1757763032243,-315.31206407,0.00021,2]
[385311864,1757763032252,-300.0,0.00021147,2]
[385311866,1757763032262,-300.0,0.00021147,2]
[385311869,1757763032271,-300.0,0.00021147,2]
[385311872,1757763032281,-300.0,0.00021147,2]
[385311874,1757763032291,-4057.40860091,0.00021149,2]
[385311876,1757763032301,-4057.40860091,0.00022398,2]
[385311878,1757763032310,-420.0,0.00023,2]
[385311880,1757763032319,-4057.40860091,0.00023647,2]
[385311882,1757763032329,-24630.49968022,0.00023987,2]
[385311931,1757763038060,-4486.9999999,0.00023987,2]
[385311938,1757763038167,-1824.95003109,0.00023987,2]
[385311944,1757763038223,-4196.08556279,0.00023987,2]
[385311945,1757763038232,-202.02196558,0.00023989,2]
[385311947,1757763038241,-250.0,0.00023989,2]
[385311948,1757763038250,-100000.0,0.0002399,2]
[385311949,1757763038259,-294.11260881,0.00024041,2]
[385311950,1757763038270,-484.29658539,0.00024041,2]
[385311951,1757763038278,-389.2045971,0.00024041,2]
[385311952,1757763038287,-256.216,0.00024045,5]
[385311953,1757763038296,-1520.10992331,0.00024152,2]
[385311954,1757763038305,-153.0,0.00024164,2]
[385311955,1757763038315,-153.0,0.00024164,2]
[385311956,1757763038325,-153.0,0.00024164,2]
[385311957,1757763038334,-153.0,0.00024164,2]
[385311958,1757763038345,-153.0,0.00024164,2]
[385311959,1757763038354,-168.0,0.00024249,2]
[385311960,1757763038363,-152.3601325,0.00024301,2]
[385311961,1757763038372,-310.3616017,0.00024301,2]
[385311962,1757763038381,-153.0,0.00024301,2]
[385311963,1757763038391,-153.0,0.00024301,2]
[385311964,1757763038400,-153.0,0.00024301,2]
[385311965,1757763038409,-153.0,0.00024301,2]
[385311966,1757763038418,-153.0,0.00024301,2]
[385311967,1757763038427,-153.0,0.00024301,2]
[385311968,1757763038436,-168.0,0.00024365,2]
[385311969,1757763038445,-168.0,0.00024424,2]
[385311970,1757763038455,-389.2045971,0.00024466,2]
[385311971,1757763038463,-389.2045971,0.00024466,2]
[385311972,1757763038472,-389.2045971,0.00024466,2]
[385311973,1757763038481,-389.2045971,0.00024466,2]
[385311974,1757763038490,-389.2045971,0.00024466,2]
[385311975,1757763038499,-337.84439747,0.00024556,2]
[385311976,1757763038507,-500.0,0.00024556,2]
[385311977,1757763038516,-6073.16519893,0.00024557,2]
[385311978,1757763038527,-430.67237341,0.00024557,2]
[385311979,1757763038537,-435.51075284,0.00024557,2]
[385311980,1757763038548,-1029.90528088,0.00024557,2]
[385311985,1757763040031,-1081.52748351,0.00024557,2]
[385311986,1757763040089,-429.42624312,0.00024557,2]
[385311988,1757763040144,-23820.29301718,0.00024557,2]
[385311989,1757763040155,-3710.11107873,0.00024557,2]
[385312003,1757763043224,-297.39487954,0.000199,2]
[385312005,1757763043235,-11963.88828552,0.00024557,2]
[385312008,1757763043247,-658.31929413,0.00024557,2]
[385312009,1757763043278,-2675.42288781,0.00024557,2]
[385312010,1757763043333,-300.00072039,0.00024557,2]
[385312027,1757763046107,-81537.61547346,0.00024557,2]
[385312028,1757763046116,-500.0,0.00024557,2]
[385312029,1757763046125,-2085.32613365,0.00024557,2]
[385312030,1757763046134,-404.42797442,0.00024657,3]
[385312031,1757763046143,-480.0,0.00024657,3]
[385312032,1757763046151,-480.0,0.00024657,3]
[385312033,1757763046160,-480.0,0.00024657,3]
[385312034,1757763046170,-480.0,0.00024657,3]
[385312035,1757763046179,-480.0,0.00024657,3]
[385312036,1757763046188,-480.0,0.00024657,3]
[385312037,1757763046197,-480.0,0.00024657,3]
[385312038,1757763046206,-480.0,0.00024657,3]
[385312039,1757763046216,-480.0,0.00024657,3]